bitfinex-derivatives/quotes_ETHF0:USTF0_20250923
["timestamp","ask_amount","ask_price","bid_price","bid_amount"]
[1758645804594,0.7644,4170.4,4170.3,0.222]
[1758645804802,0.7644,4170.4,4170.3,0.7321]
[1758645805394,0.1351,4171.0,4170.4,0.3044]
[1758645805600,0.3275,4171.1,4170.9,0.3044]
[1758645805793,0.5428,4171.1,4171.0,0.7321]
[1758645806694,0.7644,4171.1,4171.0,0.7321]
[1758645806895,0.7644,4171.1,4171.0,0.4277]
[1758645807091,0.1351,4171.5,4171.1,0.43127]
[1758645807297,0.3275,4171.4,4171.3,0.7321]
[1758645807604,0.5428,4171.4,4171.3,0.7321]
[1758645807903,0.7644,4171.4,4171.3,0.7321]
[1758645808103,0.5428,4171.4,4171.3,0.7321]
[1758645808902,0.7644,4171.4,4171.3,0.7321]
[1758645810996,0.3275,4171.9,4171.8,0.222]
[1758645811200,0.7644,4172.2,4171.7,0.3044]
[1758645811402,3.2078,4172.3,4171.7,0.3044]
[1758645811403,0.7644,4171.8,4171.7,0.222]
[1758645812304,0.7644,4171.8,4171.7,0.4277]
[1758645813699,1.19559,4171.8,4171.7,0.4277]
[1758645813899,0.8944,4171.5,4171.4,3.2078]
[1758645814096,0.8944,4171.5,4171.4,4.31673]
[1758645814300,0.8944,4171.5,4171.4,4.31593]
[1758645814808,0.8944,4171.5,4171.4,4.1891]
[1758645815009,1.32562,4171.5,4171.4,3.8847]
[1758645815200,1.32562,4171.5,4171.4,3.457]
[1758645815504,0.7644,4171.5,4171.4,4.62033]
[1758645815810,0.86808,4171.9,4171.8,0.222]
[1758645816202,1.19558,4171.9,4171.8,0.222]
[1758645816802,0.7644,4171.9,4171.8,0.222]
[1758645817008,0.7644,4171.9,4171.8,1.16329]
[1758645817304,0.13,4173.5,4172.3,0.43114]
[1758645817305,3.6389,4172.8,4172.3,0.43114]
[1758645817505,4.4033,4172.8,4172.7,0.222]
[1758645817906,0.4369,4172.4,4172.3,0.25]
[1758645818209,0.86806,4172.1,4172.0,3.4578]
[1758645818506,1.19556,4172.1,4172.0,0.25]
[1758645818703,1.19556,4172.1,4171.4,3.5122]
[1758645818704,1.32562,4171.5,4171.4,3.2078]
[1758645818902,0.8944,4171.5,4171.4,4.06673]
[1758645819209,0.7644,4171.5,4171.4,4.37113]
[1758645819602,1.32562,4171.5,4171.4,3.6355]
[1758645819803,0.8944,4171.5,4171.4,3.6355]
[1758645820303,0.8944,4171.5,4171.4,3.2078]
[1758645820508,0.8944,4171.5,4171.4,3.6355]
[1758645820711,1.32562,4171.5,4171.4,3.6355]
[1758645821207,0.7644,4171.5,4171.4,4.37113]
[1758645821405,0.7644,4171.5,4171.4,3.9399]
[1758645821606,1.19562,4171.5,4171.4,3.9399]
[1758645822004,1.32562,4171.5,4171.4,3.9399]
[1758645822810,0.8944,4171.5,4171.4,3.6355]
[1758645823108,0.7644,4171.5,4171.4,3.9399]
[1758645823307,0.4312,4171.8,4171.4,4.37113]
[1758645823502,0.974,4171.7,4171.6,0.3044]
[1758645823703,0.974,4171.7,4171.6,0.7321]
[1758645824303,0.64644,4172.3,4172.2,0.4277]
[1758645824503,1.19554,4172.3,4172.2,0.7321]
[1758645824908,1.19554,4172.3,4172.2,0.4277]
[1758645825308,1.19554,4172.3,4172.2,0.7321]
[1758645825508,1.19554,4172.3,4172.2,0.4277]
[1758645826310,1.19554,4172.3,4172.2,0.222]
[1758645828012,0.43116,4172.1,4172.0,0.68117]
[1758645828214,1.19556,4172.1,4172.0,0.472]
[1758645828414,1.19556,4172.1,4172.0,0.68117]
[1758645828719,0.43117,4172.0,4171.9,3.2078]
[1758645828907,1.32557,4172.0,4171.9,3.2078]
[1758645830415,0.4312,4171.7,4171.6,0.25]
[1758645830717,1.19561,4171.6,4171.5,0.90322]
[1758645830907,0.7644,4171.6,4171.5,1.10892]
[1758645831108,0.7644,4171.6,4171.5,1.41332]
[1758645831513,0.97398,4171.9,4171.8,1.16329]
[1758645831716,1.19558,4171.9,4171.8,0.9821]
[1758645831915,1.19558,4171.9,4171.8,0.472]
[1758645832119,1.19558,4171.9,4171.8,0.25]
[1758645833009,1.19558,4171.9,4171.8,0.472]
[1758645834811,1.19558,4171.9,4171.8,1.45319]
[1758645834812,0.5428,4171.9,4171.8,1.45319]
[1758645835018,0.4663,4172.5,4172.1,0.755]
[1758645835312,0.97503,4172.4,4172.3,0.755]
[1758645835518,1.19773,4172.4,4172.3,0.755]
[1758645835908,1.19773,4172.4,4172.3,0.4197]
[1758645839025,0.43115,4172.2,4172.1,0.25]
[1758645839229,0.97505,4172.2,4172.1,0.8]
[1758645839428,1.19775,4172.2,4172.1,1.005]
[1758645839933,1.19775,4172.2,4172.1,0.6697]
[1758645840132,1.19775,4172.2,4172.1,0.455]
[1758645840720,1.19775,4172.2,4171.4,1.07809]
[1758645840721,0.43122,4171.6,4171.5,0.205]
[1758645840925,0.7666,4171.6,4171.5,1.43622]
[1758645841135,1.19781,4171.6,4171.5,1.43622]
[1758645841429,1.19781,4171.6,4171.5,0.6697]
[1758645841734,1.19781,4171.6,4171.5,0.25]
[1758645841935,1.19781,4171.6,4171.5,0.455]
[1758645842139,1.19781,4171.6,4171.5,1.005]
[1758645842833,1.19781,4171.6,4171.5,0.6697]
[1758645843333,1.19781,4171.6,4171.5,1.005]
[1758645843535,1.19781,4171.6,4171.5,0.6697]
[1758645843930,1.19781,4171.6,4171.5,0.25]
[1758645845628,0.97517,4171.1,4171.0,0.755]
[1758645845828,0.97517,4171.1,4171.0,1.005]
[1758645846031,1.19787,4171.1,4171.0,1.005]
[1758645846627,1.19787,4171.1,4171.0,0.6697]
[1758645846833,1.19787,4171.1,4171.0,0.455]
[1758645847234,1.19787,4171.1,4171.0,0.25]
[1758645850239,0.86163,4170.5,4170.4,0.5403]
[1758645850442,1.19793,4170.5,4170.4,1.005]
[1758645851032,1.19793,4170.5,4170.4,0.755]
[1758645851343,0.7666,4170.5,4170.4,1.43634]
[1758645851527,0.2076,4170.5,4170.4,1.43634]
[1758645851841,1.1979,4170.8,4170.7,0.755]
[1758645852034,1.1979,4170.8,4170.7,1.005]
[1758645853638,1.1979,4170.8,4170.7,0.6697]
[1758645853936,1.19274,4170.4,4170.3,3.428]
[1758645854142,1.19274,4170.4,4170.3,4.2131]
[1758645854334,0.7614,4170.4,4170.3,4.2131]
[1758645854734,1.19274,4170.4,4170.3,4.2131]
[1758645855541,1.19274,4170.4,4170.3,3.678]
[1758645855743,1.19274,4170.4,4170.3,3.8953]
[1758645856536,1.19274,4170.4,4170.3,4.2131]
[1758645856942,0.7614,4170.4,4170.3,4.2131]
[1758645857546,1.19274,4170.4,4170.3,4.2131]
[1758645860446,0.7614,4170.4,4170.3,4.2131]
[1758645860643,1.19274,4170.4,4170.3,4.2131]
[1758645860839,1.19274,4170.4,4170.3,3.9631]
[1758645861144,1.19274,4170.4,4170.3,3.6453]
[1758645861648,1.19274,4170.4,4170.3,3.9631]
[1758645862444,0.5409,4170.4,4170.3,3.9631]
[1758645862643,0.97224,4170.4,4170.3,3.9631]
[1758645863944,0.96914,4170.4,4170.3,3.9706]
[1758645864937,0.5378,4170.4,4170.3,3.9706]
[1758645865242,0.96914,4170.4,4170.3,3.9706]
[1758645865750,0.5378,4170.4,4170.3,3.9706]
[1758645866144,0.96914,4170.4,4170.3,3.9706]
[1758645866945,0.5378,4170.4,4170.3,3.9706]
[1758645867452,0.43133,4170.5,4170.3,3.63915]
[1758645867753,0.43133,4170.5,4170.4,0.25]
[1758645870654,1.07817,4171.1,4170.4,0.68133]
[1758645870854,0.43134,4170.4,4170.3,3.2078]
[1758645880063,1.07818,4171.1,4170.4,0.43133]
[1758645880263,0.43131,4170.6,4170.5,0.25]
[1758645881058,0.43131,4170.7,4170.5,0.68132]
[1758645881359,1.07818,4171.1,4170.5,0.25]
[1758645881561,0.43129,4170.9,4170.7,0.4313]
[1758645881864,0.43122,4171.5,4171.2,0.43124]
[1758645882055,0.43121,4171.7,4171.3,0.25]
[1758645882253,0.43114,4172.3,4171.4,3.4578]
[1758645882556,3.63893,4172.4,4172.0,0.43116]
[1758645882752,1.07759,4173.3,4172.0,0.43116]
[1758645882753,0.43111,4172.6,4172.2,0.43115]
[1758645882951,0.43108,4172.9,4172.3,0.25]
[1758645883159,3.2078,4173.0,4172.3,0.25]
[1758645883362,0.4311,4172.7,4172.3,0.25]
[1758645883559,0.43108,4172.9,4172.3,0.25]
[1758645883754,3.2078,4173.0,4172.3,0.25]
[1758645883955,0.43108,4172.9,4172.4,0.43112]
[1758645884164,3.2078,4173.0,4172.5,0.25]
[1758645884457,3.63887,4173.0,4172.6,0.6811]
[1758645884850,3.2078,4173.0,4172.6,0.6811]
[1758645885055,3.2078,4173.0,4172.6,0.25]
[1758645885255,0.43109,4172.8,4172.6,0.25]
[1758645885456,3.63887,4173.0,4172.6,0.25]
[1758645885656,3.63887,4173.0,4172.5,3.2078]
[1758645885976,3.63887,4173.0,4172.6,0.25]
[1758645886260,3.2078,4173.0,4172.6,0.6811]
[1758645886459,0.43108,4172.9,4172.7,0.25]
[1758645886862,3.2078,4173.0,4172.7,0.25]
[1758645887063,3.2078,4173.5,4173.1,0.43105]
[1758645887366,3.2078,4173.5,4173.2,0.43104]
[1758645887567,3.2078,4173.5,4173.1,0.25]
[1758645887568,0.43103,4173.4,4173.1,0.25]
[1758645887763,0.43104,4173.3,4173.1,0.25]
[1758645887957,3.63882,4173.5,4173.1,0.25]
[1758645888163,3.2078,4173.5,4173.1,0.68105]
[1758645888466,3.2078,4173.5,4173.3,0.43103]
[1758645888653,3.2078,4173.5,4173.1,0.68105]
[1758645888857,3.2078,4173.5,4173.2,0.43104]
[1758645889054,3.2078,4173.5,4173.3,0.43103]
[1758645889660,0.431,4173.7,4173.1,3.4578]
[1758645889862,0.431,4173.7,4173.3,0.43103]
[1758645890063,0.43101,4173.6,4173.2,0.43104]
[1758645890265,0.431,4173.7,4173.2,0.43104]
[1758645890464,0.43101,4173.6,4173.2,0.43104]
[1758645890762,3.2078,4174.0,4173.1,3.4578]
[1758645890969,3.63871,4174.5,4174.1,0.43095]
[1758645891263,0.43092,4174.4,4174.2,0.249]
[1758645891471,3.63871,4174.5,4174.2,0.249]
[1758645891661,3.2078,4174.5,4174.2,0.249]
[1758645891967,0.43093,4174.4,4174.2,0.249]
[1758645892168,0.43099,4173.8,4173.7,0.249]
[1758645892556,0.43097,4174.0,4173.7,0.249]
[1758645892768,3.4568,4174.5,4173.6,3.2078]
[1758645892969,1.07731,4174.4,4173.7,0.249]
[1758645893868,3.4568,4174.5,4173.8,0.43098]
[1758645894169,0.43097,4174.0,4173.8,0.43098]
[1758645894563,3.4568,4174.5,4173.8,0.43098]
[1758645894766,3.4568,4174.5,4173.9,0.43097]
[1758645894965,3.2078,4174.5,4173.7,0.249]
[1758645895167,3.63871,4174.5,4174.2,0.43093]
[1758645895367,0.43092,4174.4,4174.2,0.249]
[1758645895672,0.43097,4174.0,4173.8,0.43098]
[1758645895871,0.43096,4174.1,4173.9,0.67997]
[1758645896872,0.43096,4174.1,4173.9,0.249]
[1758645897371,0.43098,4173.8,4173.6,3.2078]
[1758645897564,0.43098,4173.8,4173.7,0.249]
[1758645898173,0.43098,4173.8,4173.7,0.67999]
[1758645898374,0.43097,4174.0,4173.8,0.43098]
[1758645898575,1.07734,4174.3,4173.7,0.249]
[1758645898768,0.43099,4173.7,4173.6,3.2078]
[1758645899074,1.32634,4174.3,4173.6,3.2078]
[1758645899276,1.32634,4174.3,4173.7,0.43099]
[1758645899572,0.43097,4174.0,4173.8,0.43098]
[1758645899773,0.249,4174.4,4173.6,3.6388]
[1758645899982,0.43098,4173.9,4173.7,0.43099]
[1758645900276,0.43098,4173.8,4173.6,3.6388]
[1758645900482,0.43096,4174.1,4173.8,0.43098]
[1758645900776,0.43096,4174.1,4173.9,0.43097]
[1758645900980,0.43094,4174.3,4174.0,0.43096]
[1758645901274,0.43094,4174.3,4173.9,0.67996]
[1758645901469,0.43094,4174.2,4174.0,0.43096]
[1758645901675,0.43094,4174.3,4173.9,0.249]
[1758645902176,3.63872,4174.5,4173.9,0.249]
[1758645902477,0.43093,4174.3,4174.1,0.43094]
[1758645903377,3.2078,4174.5,4173.9,0.249]
[1758645904072,0.43096,4174.1,4173.9,0.249]
[1758645904273,0.43096,4174.0,4173.9,0.249]
[1758645904972,0.43099,4173.8,4173.6,3.2078]
[1758645905172,0.43095,4174.1,4173.8,0.43098]
[1758645905373,3.2078,4174.5,4173.6,3.2078]
[1758645905569,0.43094,4174.2,4173.6,3.4568]
[1758645905776,0.43094,4174.2,4173.9,0.43097]
[1758645905969,3.2078,4174.5,4174.0,0.43096]
[1758645906174,3.2078,4174.5,4173.6,3.4568]
[1758645906370,1.07731,4174.4,4173.7,0.67999]
[1758645906578,3.2078,4174.5,4173.7,0.249]
[1758645906770,0.43094,4174.3,4174.0,0.43095]
[1758645906969,4.2851,4174.5,4173.8,0.43098]
[1758645907170,4.2851,4174.5,4173.9,0.43097]
[1758645907372,0.43095,4174.1,4174.0,0.43096]
[1758645907780,0.43095,4174.1,4173.8,0.43097]
[1758645907987,0.43095,4174.1,4173.9,0.43097]
[1758645909082,0.43096,4174.0,4173.9,0.43097]
[1758645909281,4.28509,4174.5,4173.9,0.43097]
[1758645909675,0.43096,4174.1,4173.9,0.43097]
[1758645910082,0.43094,4174.3,4174.0,0.43096]
[1758645910283,0.43095,4174.2,4174.0,0.43096]
[1758645910587,3.2078,4174.5,4174.2,0.43094]
[1758645910588,0.43093,4174.4,4174.2,0.43094]
[1758645910781,3.2078,4174.5,4174.2,0.43094]
[1758645910984,0.43093,4174.3,4174.1,0.43095]
[1758645911181,0.43093,4174.3,4173.7,0.249]
[1758645911379,3.2078,4174.5,4173.7,0.249]
[1758645911578,0.43089,4174.8,4174.4,0.43092]
[1758645911882,3.2078,4175.0,4174.3,0.249]
[1758645912087,0.43082,4175.4,4174.7,3.2078]
[1758645912291,0.43083,4175.3,4174.7,3.4568]
[1758645912580,0.43082,4175.4,4175.0,0.43086]
[1758645912791,0.249,4175.7,4175.0,0.43086]
[1758645913082,3.2078,4176.0,4175.2,3.2078]
[1758645913276,0.43078,4175.8,4175.5,0.43081]
[1758645913477,3.2078,4176.0,4175.5,0.4308]
[1758645913690,3.2078,4176.0,4175.5,0.249]
[1758645913890,0.43079,4175.8,4175.5,0.249]
[1758645914186,0.43077,4175.9,4175.5,0.67981]
[1758645914382,0.43078,4175.8,4175.5,0.67981]
[1758645914685,3.2078,4176.5,4175.4,0.249]
[1758645914987,0.43076,4176.0,4175.5,0.43081]
[1758645915187,0.43076,4176.0,4175.4,0.249]
[1758645915188,0.43076,4176.0,4175.6,0.4308]
[1758645915383,3.2078,4176.5,4175.8,0.43077]
[1758645915690,0.43074,4176.2,4175.9,0.43077]
[1758645915889,0.43075,4176.1,4175.9,0.43077]
[1758645916376,3.2078,4176.6,4175.9,0.43077]
[1758645916582,0.43073,4176.3,4176.0,0.43075]
[1758645916887,0.43072,4176.4,4175.9,0.43076]
[1758645917186,1.07662,4177.2,4176.1,0.43074]
[1758645917187,3.2078,4177.1,4176.1,0.43074]
[1758645917380,3.2078,4177.1,4176.2,0.249]
[1758645917580,0.43072,4176.4,4176.2,0.249]
[1758645919089,0.42992,4176.4,4176.2,0.249]
[1758645921285,0.4307,4176.6,4176.3,0.43072]
[1758645921490,1.07667,4177.0,4176.2,0.249]
[1758645921693,3.2078,4177.1,4176.2,0.249]
[1758645921988,0.43072,4176.4,4176.2,0.67973]
[1758645922188,0.43067,4176.9,4176.6,0.43069]
[1758645922390,3.2078,4177.1,4176.3,3.2078]
[1758645922584,0.4307,4176.6,4176.3,3.2078]
[1758645922788,0.43068,4176.8,4176.3,3.2078]
[1758645922982,3.2078,4177.1,4176.6,0.43069]
[1758645923292,3.2078,4177.1,4176.4,0.43071]
[1758645923586,0.43068,4176.8,4176.6,0.43069]
[1758645923786,0.43068,4176.7,4176.6,0.43069]
[1758645924085,0.43061,4177.4,4177.2,0.43062]
[1758645924292,3.2078,4177.6,4177.3,0.43062]
[1758645924483,3.2078,4177.6,4177.0,0.249]
[1758645924689,3.2078,4177.6,4177.5,0.4306]
[1758645925095,0.022,4177.9,4177.7,0.43058]
[1758645925392,0.43058,4177.8,4177.5,3.4568]
[1758645925691,0.43058,4177.7,4177.5,3.4568]
[1758645926292,0.022,4177.9,4177.5,3.4568]
[1758645926590,0.43058,4177.7,4177.5,3.4568]
[1758645926994,0.7432,4177.6,4177.5,0.249]
[1758645927297,1.17384,4177.1,4177.0,3.2078]
[1758645927894,1.17384,4177.1,4177.0,3.4302]
[1758645928189,0.5279,4177.1,4177.0,3.9517]
[1758645928494,0.5279,4177.3,4177.2,0.7439]
[1758645929387,0.5279,4177.3,4177.1,0.249]
[1758645929388,0.65443,4177.2,4177.1,0.249]
[1758645929593,0.86973,4177.2,4177.0,3.2078]
[1758645929893,0.7432,4177.1,4177.0,3.6792]
[1758645930396,1.17384,4177.1,4177.0,3.6792]
[1758645930594,0.7432,4177.1,4177.0,3.6792]
[1758645930892,1.17384,4177.1,4177.0,3.6792]
[1758645931494,0.7432,4177.1,4177.0,3.6792]
[1758645931686,0.7432,4177.1,4177.0,3.8958]
[1758645932097,1.17384,4177.1,4177.0,3.8958]
[1758645932295,0.7432,4177.1,4177.0,4.63135]
[1758645932492,0.2238,4177.5,4177.4,0.7439]
[1758645932688,0.67636,4177.9,4177.8,0.439]
[1758645932894,0.67636,4177.9,4177.8,0.7439]
[1758645933095,0.98046,4177.9,4177.8,0.7439]
[1758645933697,0.5499,4177.9,4177.8,0.7439]
[1758645933996,0.98046,4177.9,4177.8,0.7439]
[1758645934195,1.19576,4177.9,4177.8,0.439]
[1758645934892,0.7652,4177.9,4177.8,0.7439]
[1758645935199,0.43058,4177.7,4177.6,0.249]
[1758645935394,0.86968,4177.7,4177.6,0.249]
[1758645935596,1.17378,4177.7,4177.6,0.4714]
[1758645935896,1.17378,4177.7,4177.6,0.249]
[1758645936098,1.17378,4177.7,4177.6,0.4714]
[1758645937097,1.17378,4177.7,4177.6,0.249]
[1758645937597,0.7432,4177.7,4177.6,1.11859]
[1758645937802,0.43057,4177.8,4177.7,0.7439]
[1758645937803,0.95847,4177.8,4177.7,0.7439]
[1758645938002,1.17377,4177.8,4177.7,0.439]
[1758645939104,1.17377,4177.8,4177.7,0.7439]
[1758645939302,0.5279,4177.8,4177.7,1.17448]
[1758645939499,0.022,4177.9,4177.7,1.17448]
[1758645939500,0.022,4177.9,4177.8,0.43057]
[1758645939693,0.022,4177.9,4177.8,1.17447]
[1758645943097,0.2238,4178.8,4178.7,0.65288]
[1758645943402,0.5279,4179.1,4179.0,0.439]
[1758645943606,0.5279,4179.1,4179.0,1.17435]
[1758645943802,0.5279,4179.3,4179.2,0.7439]
[1758645944209,0.7432,4179.3,4179.2,0.7439]
[1758645944506,0.5279,4179.3,4179.2,0.7439]
[1758645944711,3.5819,4180.0,4179.2,0.439]
[1758645944906,0.654,4179.5,4179.4,0.439]
[1758645945107,0.654,4179.5,4179.4,0.7439]
[1758645945502,0.8693,4179.5,4179.4,0.439]
[1758645947113,1.2997,4179.5,4179.4,0.439]
[1758645947509,1.2997,4179.5,4179.4,0.2224]
[1758645948808,0.43044,4179.2,4179.0,3.7607]
[1758645949002,1.17364,4179.2,4179.1,0.439]
[1758645949705,1.17364,4179.2,4179.1,0.2224]
[1758645949899,1.17364,4179.1,4179.0,3.2078]
[1758645950406,1.17364,4179.1,4179.0,4.38215]
[1758645950407,0.7432,4179.1,4179.0,4.38215]
[1758645950709,0.7432,4179.1,4179.0,3.9517]
[1758645950898,0.7432,4179.1,4179.0,3.2078]
[1758645950899,1.17364,4179.1,4179.0,3.2078]
[1758645952413,0.7432,4179.1,4179.0,3.2078]
[1758645952713,1.17364,4179.1,4179.0,3.4302]
[1758645954016,1.17364,4179.1,4179.0,3.2078]
[1758645955214,0.43052,4178.3,4178.2,3.2078]
[1758645955515,1.16892,4178.3,4178.2,3.665]
[1758645955815,1.16892,4178.3,4178.2,3.417]
[1758645956016,1.16892,4178.3,4178.2,3.2078]
[1758645956317,1.16892,4178.3,4178.2,3.417]
[1758645956511,1.16892,4178.3,4178.2,3.9495]
[1758645956713,0.7384,4178.3,4178.2,4.38003]
[1758645956902,0.2088,4178.3,4178.2,4.38003]
[1758645957109,1.16892,4178.3,4178.2,3.6402]
[1758645957311,1.16892,4178.3,4178.2,3.417]
[1758645957815,1.16892,4178.3,4178.2,3.665]
[1758645958914,0.5142,4178.3,4178.2,4.62803]
[1758645959106,1.07618,4178.8,4178.2,3.8882]
[1758645959311,1.16891,4178.4,4178.3,0.4324]
[1758645959716,1.16891,4178.4,4178.3,0.7417]
[1758645960229,0.86352,4178.3,4178.2,0.248]
[1758645960416,1.16892,4178.3,4178.2,0.4572]
[1758645960610,0.43055,4178.0,4177.9,0.3093]
[1758645960815,1.16897,4177.8,4177.7,3.2078]
[1758645961607,1.16897,4177.8,4177.7,3.6402]
[1758645961821,1.16897,4177.8,4177.7,3.9495]
[1758645962211,0.5142,4177.8,4177.7,4.38008]
[1758645962408,0.43054,4178.1,4177.9,0.43056]
[1758645962618,0.43054,4178.1,4178.0,0.248]
[1758645962817,0.2088,4178.2,4178.1,1.17224]
[1758645963010,0.43052,4178.4,4178.3,1.17222]
[1758645963215,0.43052,4178.4,4178.3,0.7417]
[1758645963413,0.7359,4178.6,4178.3,1.17222]
[1758645963616,0.5142,4178.6,4178.5,0.4324]
[1758645963816,0.5142,4178.6,4178.5,0.7417]
[1758645964017,0.94469,4178.6,4178.5,0.7417]
[1758645965217,1.16889,4178.6,4178.5,0.2092]
[1758645965423,0.94472,4178.3,4178.2,0.6804]
[1758645965622,0.433,4178.3,4177.7,3.9495]
[1758645965825,1.16897,4177.8,4177.7,3.9495]
[1758645966118,0.2088,4177.8,4177.7,3.9495]
[1758645966319,0.5142,4178.2,4178.1,0.4324]
[1758645966517,0.43053,4178.2,4178.1,0.7417]
[1758645966824,0.5142,4178.4,4178.3,0.7417]
[1758645967021,0.94471,4178.4,4178.3,0.7417]
[1758645967719,1.07619,4178.8,4178.3,0.6804]
[1758645967720,1.07618,4178.8,4178.3,0.6804]
[1758645967918,1.16888,4178.7,4178.6,0.2092]
[1758645969024,0.86354,4178.1,4178.0,0.7665]
[1758645969222,1.16894,4178.1,4178.0,0.7665]
[1758645969522,1.16894,4178.1,4178.0,0.4572]
[1758645969926,0.7384,4178.1,4178.0,1.11095]
[1758645970220,0.7384,4178.1,4178.0,1.42025]
[1758645972128,0.2088,4178.1,4178.0,1.42025]
[1758645972327,0.5274,4178.1,4178.0,1.42025]
[1758645973119,1.16274,4178.1,4178.0,0.7272]
[1758645973923,0.43057,4177.8,4177.7,3.2078]
[1758645974127,1.16757,4177.8,4177.7,3.6592]
[1758645974329,1.16757,4177.8,4177.7,3.8741]
[1758645975023,0.737,4177.8,4177.7,3.8741]
[1758645975329,0.737,4177.8,4177.7,4.61358]
[1758645976227,0.43052,4178.3,4177.7,4.183]
[1758645976432,0.5322,4178.3,4178.2,1.15773]
[1758645976731,0.737,4178.3,4178.0,0.248]
[1758645976931,0.84892,4178.3,4178.2,0.2034]
[1758645977227,0.84892,4178.3,4178.2,1.15773]
[1758645977228,0.2136,4178.3,4178.2,1.15773]
[1758645977429,0.64412,4178.3,4178.2,0.7272]
[1758645977629,0.96272,4178.3,4178.2,0.7272]
[1758645978234,0.5322,4178.3,4178.2,1.15773]
[1758645978623,0.2136,4178.3,4178.2,1.15773]
[1758645979230,0.2136,4178.3,4178.2,4.36553]
[1758645979436,0.96267,4178.9,4178.8,0.4183]
[1758645979730,0.2136,4179.2,4179.1,0.4183]
[1758645979933,1.16743,4179.2,4179.1,0.4183]
[1758645980236,1.16743,4179.2,4179.1,0.2034]
[1758645980628,0.5322,4179.2,4179.1,0.7272]
[1758645980828,0.5322,4179.2,4179.1,1.15764]
[1758645981234,0.5322,4179.2,4179.1,0.7272]
[1758645981429,0.737,4179.2,4179.1,0.7272]
[1758645981736,0.5322,4179.2,4179.1,1.15764]
[1758645982138,0.2136,4179.2,4179.1,1.15764]
[1758645983038,0.2136,4179.7,4179.6,1.18648]
[1758645983236,0.2136,4179.7,4179.6,4.39428]
[1758645983440,0.2136,4179.7,4179.6,3.9639]
[1758645983632,0.7449,4179.7,4179.6,3.6324]
[1758645984542,0.7449,4179.7,4179.6,3.4144]
[1758645985136,0.7449,4179.7,4179.6,3.2078]
[1758645985638,0.7449,4179.7,4179.6,3.9639]
[1758645985939,0.5218,4179.9,4179.8,0.4246]
[1758645986138,0.5218,4179.9,4179.8,0.7561]
[1758645986342,0.5218,4179.9,4179.8,1.18647]
[1758645986541,0.5218,4180.1,4180.0,1.18645]
[1758645986741,0.209,4180.1,4180.0,1.18645]
[1758645987042,0.5218,4180.1,4180.0,1.18645]
[1758645987643,1.2923,4180.5,4180.4,0.2066]
[1758645987844,1.2923,4180.5,4180.4,0.4246]
[1758645988047,0.7403,4180.5,4180.4,0.7561]
[1758645988251,0.5218,4180.5,4180.4,0.7561]
[1758645988448,3.2078,4180.7,4180.4,0.4246]
[1758645988741,0.1291,4181.0,4180.6,0.4246]
[1758645988941,0.5218,4180.8,4180.7,0.7975]
[1758645989141,0.1291,4181.0,4180.7,1.0041]
[1758645989446,0.5218,4180.8,4180.7,0.6726]
[1758645990049,0.43027,4180.7,4180.4,3.6381]
[1758645990246,0.1291,4181.0,4180.6,0.4246]
[1758645990438,0.4275,4180.8,4180.7,0.5381]
[1758645990639,0.7403,4180.8,4180.7,0.7561]
[1758645990842,0.7403,4180.8,4180.7,0.4246]
[1758645991042,0.7403,4180.8,4180.5,0.248]
[1758645991244,0.4275,4180.8,4180.7,0.218]
[1758645991545,0.4275,4180.8,4180.7,0.7561]
[1758645991744,0.7403,4180.8,4180.7,0.7561]
[1758645992048,4.37831,4181.3,4181.2,0.4246]
[1758645992856,4.37831,4181.3,4180.9,0.76175]
[1758645992857,1.29964,4181.0,4180.9,0.2066]
[1758645993045,1.29964,4181.0,4180.9,0.4246]
[1758645993449,1.29964,4181.0,4180.9,0.2066]
[1758645993654,1.17057,4180.7,4180.6,0.88488]
[1758645993855,0.7403,4180.7,4180.6,0.88488]
[1758645994450,0.7403,4180.7,4180.6,0.4246]
[1758645994651,0.7403,4180.7,4180.6,0.6726]
[1758645995555,0.7403,4180.7,4180.6,0.4546]
[1758645995853,0.7403,4180.7,4180.6,1.0041]
[1758645997143,0.43027,4180.8,4180.6,1.10287]
[1758645997349,0.95207,4180.8,4180.7,0.7561]
[1758645997543,0.7403,4180.5,4180.4,3.9639]
[1758645997846,0.209,4180.5,4180.4,4.6422]
[1758645998052,0.5218,4180.5,4180.4,4.6422]
[1758645998251,0.43029,4180.6,4180.4,4.6422]
[1758645998252,0.74307,4180.8,4180.6,0.3315]
[1758645998548,0.1291,4181.0,4180.7,1.18637]
[1758645998850,0.5218,4180.9,4180.8,1.18636]
[1758645999356,0.95205,4180.9,4180.8,0.7561]
[1758645999549,0.5218,4180.9,4180.8,0.7561]
[1758645999853,0.95205,4180.9,4180.8,0.7561]
[1758646000256,0.5218,4180.9,4180.8,0.7561]
[1758646000653,0.95205,4180.9,4180.8,0.7561]
[1758646001052,1.17055,4180.9,4180.8,0.7561]
[1758646001454,1.17055,4180.9,4180.8,0.2066]
[1758646001753,1.29969,4180.5,4180.4,3.2078]
[1758646001960,1.29969,4180.5,4180.4,3.4144]
[1758646002453,0.3128,4180.8,4180.4,3.9639]